Workbook

Sheet Electronic Balance Sheet
B5: Countries | C5: Tanzania | D5: Niger | E5: Bangladesh | F5: Bolivia | G5: Ecuador | H5: Phillipines | I5: Sri Lanka | J5: Phillipines | K5: Peru
B6: Names | C6: Chenge | D6: Chukwa | E6: Dhali | F6: Lopez | G6: Mendez | H6: Navarro | I6: Navarathna | J6: Navarro | K6: Sanchez
B7: Starting Account | C7: 160 | D7: 160 | E7: 155 | F7: 200 | G7: 190 | H7: 240 | I7: 250 | J7: 240 | K7: 190
B8: Credit and Debit | C8: 10 | D8: 10 | E8: 10 | F8: 10 | G8: 10 | H8: 10 | I8: 10 | J8: 10 | K8: 10
I9: =SUM(I$7:I8)*-0.2 -> -52 | J9: =SUM(J$7:J8)*-0.2 -> -50 | K9: =SUM(K$7:K8)*-0.2 -> -40
I10: =SUM(I$7:I9)*-0.2 -> -41.6 | J10: =SUM(J$7:J9)*-0.2 -> -40 | K10: =SUM(K$7:K9)*-0.2 -> -32
I11: =SUM(I$7:I10)*-0.2 -> -33.28 | J11: =SUM(J$7:J10)*-0.2 -> -32 | K11: =SUM(K$7:K10)*-0.2 -> -25.6
I12: =SUM(I$7:I11)*-0.2 -> -26.624 | J12: =SUM(J$7:J11)*-0.2 -> -25.6 | K12: =SUM(K$7:K11)*-0.2 -> -20.48
I13: =SUM(I$7:I12)*-0.2 -> -21.2992 | J13: =SUM(J$7:J12)*-0.2 -> -20.48 | K13: =SUM(K$7:K12)*-0.2 -> -16.384
I14: =SUM(I$7:I13)*-0.2 -> -17.03936 | J14: =SUM(J$7:J13)*-0.2 -> -16.384 | K14: =SUM(K$7:K13)*-0.2 -> -13.1072
I15: =SUM(I$7:I14)*-0.2 -> -13.631488 | J15: =SUM(J$7:J14)*-0.2 -> -13.1072 | K15: =SUM(K$7:K14)*-0.2 -> -10.48576
I16: =SUM(I$7:I15)*-0.2 -> -10.9051904 | J16: =SUM(J$7:J15)*-0.2 -> -10.48576 | K16: =SUM(K$7:K15)*-0.2 -> -8.388608
I17: =SUM(I$7:I16)*-0.2 -> -8.72415232 | J17: =SUM(J$7:J16)*-0.2 -> -8.388608 | K17: =SUM(K$7:K16)*-0.2 -> -6.7108864
I18: =SUM(I$7:I17)*-0.2 -> -6.979321856 | J18: =SUM(J$7:J17)*-0.2 -> -6.7108864 | K18: =SUM(K$7:K17)*-0.2 -> -5.36870912
I19: =SUM(I$7:I18)*-0.2 -> -5.583457485 | J19: =SUM(J$7:J18)*-0.2 -> -5.36870912 | K19: =SUM(K$7:K18)*-0.2 -> -4.294967296
I20: =SUM(I$7:I19)*-0.2 -> -4.466765988 | J20: =SUM(J$7:J19)*-0.2 -> -4.294967296 | K20: =SUM(K$7:K19)*-0.2 -> -3.435973837
I21: =SUM(I$7:I20)*-0.2 -> -3.57341279 | J21: =SUM(J$7:J20)*-0.2 -> -3.435973837 | K21: =SUM(K$7:K20)*-0.2 -> -2.748779069
I22: =SUM(I$7:I21)*-0.2 -> -2.858730232 | J22: =SUM(J$7:J21)*-0.2 -> -2.748779069 | K22: =SUM(K$7:K21)*-0.2 -> -2.199023256
I23: =SUM(I$7:I22)*-0.2 -> -2.286984186 | J23: =SUM(J$7:J22)*-0.2 -> -2.199023256 | K23: =SUM(K$7:K22)*-0.2 -> -1.759218604
B24: Bank Balance | C24: =SUM(C7:C23) -> 170 | D24: 170 | E24: =SUM(E7:E23) -> 165 | F24: 210 | G24: =SUM(G7:G23) -> 200 | H24: =SUM(H7:H23) -> 250 | I24: 9.147936743 | J24: 8.796093022 | K24: 7.036874418
B25: Absolute Poverty | C25: 150 | D25: 150 | E25: 150 | F25: 180 | G25: 180 | H25: 210 | I25: 210 | J25: 210 | K25: 150
B26: Subsistance | C26: =C25*0.5 -> 75 | D26: =D25*0.5 -> 75 | E26: =E25*0.5 -> 75 | F26: 90 | G26: 90 | H26: 105 | I26: 105 | J26: 105 | K26: 75
B27: Basic Health Care | C27: =C25*0.75 -> 112.5 | D27: =D25*0.75 -> 112.5 | E27: =E25*0.75 -> 112.5 | F27: 135 | G27: 135 | H27: 157.5 | I27: 157.5 | J27: 157.5 | K27: 112.5
B28: Education | C28: =500-(C27+C26+C25) -> 162.5 | D28: =500-(D27+D26+D25) -> 162.5 | E28: =500-(E27+E26+E25) -> 162.5 | F28: 95 | G28: 95 | H28: 27.5 | I28: 27.5 | J28: 27.5 | K28: 162.5
I29: =SUM(I$7:I28)*-0.2 -> -103.6591747 | J29: =SUM(J$7:J28)*-0.2 -> -103.5184372 | K29: =SUM(K$7:K28)*-0.2 -> -102.8147498
I30: =SUM(I$7:I29)*-0.2 -> -82.92733976 | J30: =SUM(J$7:J29)*-0.2 -> -82.81474977 | K30: =SUM(K$7:K29)*-0.2 -> -82.25179981
B31: Poverty Line | C31: 1.25 per day | D31: 1.25 per day | E31: 1.25 per day | F31: 1.5 per day | G31: 1.5 per day | H31: 1.75 per day | I31: 1.75 per day | J31: 1.75 per day | K31: 1.25 per day
C32: 4 people | D32: 4 people | E32: 4 people | F32: 4 people | G32: 4 people | H32: 4 people | I32: 4 people | J32: 4 people | K32: 4 people
C33: 30 days | D33: 30 days | E33: 30 days | F33: 30 days | G33: 30 days | H33: 30 days | I33: 30 days | J33: 30 days | K33: 30 days
I34: =SUM(I$7:I33)*-0.2 -> -66.34187181 | J34: =SUM(J$7:J33)*-0.2 -> -66.25179981 | K34: =SUM(K$7:K33)*-0.2 -> -65.80143985
I35: =SUM(I$7:I34)*-0.2 -> -53.07349744 | J35: =SUM(J$7:J34)*-0.2 -> -53.00143985 | K35: =SUM(K$7:K34)*-0.2 -> -52.64115188
I36: =SUM(I$7:I35)*-0.2 -> -42.45879796 | J36: =SUM(J$7:J35)*-0.2 -> -42.40115188 | K36: =SUM(K$7:K35)*-0.2 -> -42.1129215
I37: =SUM(I$7:I36)*-0.2 -> -33.96703836 | J37: =SUM(J$7:J36)*-0.2 -> -33.9209215 | K37: =SUM(K$7:K36)*-0.2 -> -33.6903372
I38: =SUM(I$7:I37)*-0.2 -> -27.17363069 | J38: =SUM(J$7:J37)*-0.2 -> -27.1367372 | K38: =SUM(K$7:K37)*-0.2 -> -26.95226976
I39: =SUM(I$7:I38)*-0.2 -> -21.73890455 | J39: =SUM(J$7:J38)*-0.2 -> -21.70938976 | K39: =SUM(K$7:K38)*-0.2 -> -21.56181581
I40: =SUM(I$7:I39)*-0.2 -> -17.39112364 | J40: =SUM(J$7:J39)*-0.2 -> -17.36751181 | K40: =SUM(K$7:K39)*-0.2 -> -17.24945265
I41: =SUM(I$7:I40)*-0.2 -> -13.91289891 | J41: =SUM(J$7:J40)*-0.2 -> -13.89400945 | K41: =SUM(K$7:K40)*-0.2 -> -13.79956212
I42: =SUM(I$7:I41)*-0.2 -> -11.13031913 | J42: =SUM(J$7:J41)*-0.2 -> -11.11520756 | K42: =SUM(K$7:K41)*-0.2 -> -11.03964969

Sheet notes
A2: Macros must be enabled
A3: Must be named exactly | C3: ElectronicBalanceSheet
A4: Best viewed in full screen (Escape to exit) and hide ruler - in view tab
